Body name,Body,Service Label,Service Code,Service division Label,Service division code,Organisational unit,Expenditure Category,Expenditure Code,CIPFA detailed expenditure type,CIPFA detailed expenditure code,Narrative,Date,Transaction number,Net Amount,Capital and revenue,Supplier Name,
Gosport Borough Council,,"CULTURAL, ENV AND PLANNING",H4-1,,,,DIRECT TRANSPORT COSTS,,,,,24/02/2011,11238,83.76,REVENUE,Arval Uk Mltd,
Gosport Borough Council,,"CULTURAL, ENV AND PLANNING",H4-1,,,,DIRECT TRANSPORT COSTS,,,,,24/02/2011,11238,70.04,REVENUE,Arval Uk Mltd,
Gosport Borough Council,,"CULTURAL, ENV AND PLANNING",H4-1,,,,DIRECT TRANSPORT COSTS,,,,,24/02/2011,11238,85.07,REVENUE,Arval Uk Mltd,
Gosport Borough Council,,"CULTURAL, ENV AND PLANNING",H4-1,,,,DIRECT TRANSPORT COSTS,,,,,24/02/2011,11210,29.84,REVENUE,Arval Uk Mltd,
Gosport Borough Council,,"CULTURAL, ENV AND PLANNING",H4-1,,,,DIRECT TRANSPORT COSTS,,,,,24/02/2011,11210,67.94,REVENUE,Arval Uk Mltd,
Gosport Borough Council,,"CULTURAL, ENV AND PLANNING",H4-1,,,,DIRECT TRANSPORT COSTS,,,,,24/02/2011,11210,44.55,REVENUE,Arval Uk Mltd,
Gosport Borough Council,,"CULTURAL, ENV AND PLANNING",H4-1,,,,DIRECT TRANSPORT COSTS,,,,,24/02/2011,11357,80.65,REVENUE,Arval Uk Mltd,
Gosport Borough Council,,"CULTURAL, ENV AND PLANNING",H4-1,,,,DIRECT TRANSPORT COSTS,,,,,24/02/2011,11357,72.21,REVENUE,Arval Uk Mltd,
Gosport Borough Council,,"CULTURAL, ENV AND PLANNING",H4-1,,,,MISCELLANEOUS EXPENSES,,,,,24/02/2011,11247,542.85,REVENUE,Beneficial Foundation,
Gosport Borough Council,,"CULTURAL, ENV AND PLANNING",H4-1,,,,ENERGY COSTS,,,,,03/02/2011,10596,557.23,REVENUE,E.On,
Gosport Borough Council,,"CULTURAL, ENV AND PLANNING",H4-1,,,,INDEPENDENT UNITS IN COUNCIL,,,,,03/02/2011,10594,123.80,REVENUE,Fareham Borough Council,
Gosport Borough Council,,"CULTURAL, ENV AND PLANNING",H4-1,,,,INDEPENDENT UNITS IN COUNCIL,,,,,03/02/2011,10594,7930.28,REVENUE,Fareham Borough Council,
Gosport Borough Council,,"CULTURAL, ENV AND PLANNING",H4-1,,,,INDEPENDENT UNITS IN COUNCIL,,,,,03/02/2011,10594,964.88,REVENUE,Fareham Borough Council,
Gosport Borough Council,,"CULTURAL, ENV AND PLANNING",H4-1,,,,INDEPENDENT UNITS IN COUNCIL,,,,,03/02/2011,10594,848.58,REVENUE,Fareham Borough Council,
Gosport Borough Council,,"CULTURAL, ENV AND PLANNING",H4-1,,,,REPAIRS AND MAINT OF BUILDINGS,,,,,10/02/2011,10357,433.50,REVENUE,Gs Building Services Ltd,
Gosport Borough Council,,"CULTURAL, ENV AND PLANNING",H4-1,,,,GROUNDS MAINTENANCE COSTS,,,,,10/02/2011,10512,897.74,REVENUE,Gs Building Services Ltd,
Gosport Borough Council,,"CULTURAL, ENV AND PLANNING",H4-1,,,,GROUNDS MAINTENANCE COSTS,,,,,24/02/2011,10582,4320.23,REVENUE,Gs Building Services Ltd,
Gosport Borough Council,,"CULTURAL, ENV AND PLANNING",H4-1,,,,"EQUIP, FURNITURE AND MATERIALS",,,,,10/02/2011,10399,1195.17,REVENUE,Gs Building Services Ltd,
Gosport Borough Council,,"CULTURAL, ENV AND PLANNING",H4-1,,,,"EQUIP, FURNITURE AND MATERIALS",,,,,24/02/2011,10706,474.80,REVENUE,Gs Building Services Ltd,
Gosport Borough Council,,"CULTURAL, ENV AND PLANNING",H4-1,,,,"EQUIP, FURNITURE AND MATERIALS",,,,,10/02/2011,10361,990.00,REVENUE,Gs Building Services Ltd,
Gosport Borough Council,,"CULTURAL, ENV AND PLANNING",H4-1,,,,MISCELLANEOUS EXPENSES,,,,,24/02/2011,10708,976.00,REVENUE,Gs Building Services Ltd,
Gosport Borough Council,,"CULTURAL, ENV AND PLANNING",H4-1,,,,INDEPENDENT UNITS IN COUNCIL,,,,,17/02/2011,11039,500.00,REVENUE,Gva Grimley Llp,
Gosport Borough Council,,"CULTURAL, ENV AND PLANNING",H4-1,,,,SERVICES,,,,,03/02/2011,10593,1279.25,REVENUE,Hampshire County Council,
Gosport Borough Council,,"CULTURAL, ENV AND PLANNING",H4-1,,,,"PRINTING, STAT & OFFICE EXP",,,,,24/02/2011,11363,2662.87,REVENUE,Hugh Symons Information Mngemt,
Gosport Borough Council,,"CULTURAL, ENV AND PLANNING",H4-1,,,,MISCELLANEOUS EXPENSES,,,,,17/02/2011,11000,1250.00,REVENUE,Intelligent Marketing,
Gosport Borough Council,,"CULTURAL, ENV AND PLANNING",H4-1,,,,MISCELLANEOUS EXPENSES,,,,,03/02/2011,10518,5625.00,REVENUE,Motiv8 South,
Gosport Borough Council,,"CULTURAL, ENV AND PLANNING",H4-1,,,,INDEPENDENT UNITS IN COUNCIL,,,,,17/02/2011,10922,6150.00,REVENUE,Otto Waste Solutions Limited,
Gosport Borough Council,,"CULTURAL, ENV AND PLANNING",H4-1,,,,"EQUIP, FURNITURE AND MATERIALS",,,,,14/02/2011,6221,-3966.89,REVENUE,Pentland Plants Ltd,
Gosport Borough Council,,"CULTURAL, ENV AND PLANNING",H4-1,,,,"EQUIP, FURNITURE AND MATERIALS",,,,,14/02/2011,5789,1090.89,REVENUE,Pentland Plants Ltd,
Gosport Borough Council,,"CULTURAL, ENV AND PLANNING",H4-1,,,,SERVICES,,,,,03/02/2011,10578,3203.00,REVENUE,Portsmouth City Council,
Gosport Borough Council,,"CULTURAL, ENV AND PLANNING",H4-1,,,,WATER SERVICES,,,,,03/02/2011,10521,323.20,REVENUE,Portsmouth Water Ltd,
Gosport Borough Council,,"CULTURAL, ENV AND PLANNING",H4-1,,,,"EQUIP, FURNITURE AND MATERIALS",,,,,03/02/2011,10589,715.96,REVENUE,Proludic,
Gosport Borough Council,,"CULTURAL, ENV AND PLANNING",H4-1,,,,"PRINTING, STAT & OFFICE EXP",,,,,10/02/2011,10735,428.29,REVENUE,Robert Lihou,
Gosport Borough Council,,"CULTURAL, ENV AND PLANNING",H4-1,,,,"PRINTING, STAT & OFFICE EXP",,,,,10/02/2011,10736,642.43,REVENUE,Robert Lihou,
Gosport Borough Council,,"CULTURAL, ENV AND PLANNING",H4-1,,,,SERVICES,,,,,17/02/2011,11028,916.67,REVENUE,Rspca Solent,
Gosport Borough Council,,"CULTURAL, ENV AND PLANNING",H4-1,,,,ENERGY COSTS,,,,,25/02/2011,563,1127.18,REVENUE,Shell Gas Direct Ltd,
Gosport Borough Council,,"CULTURAL, ENV AND PLANNING",H4-1,,,,WATER SERVICES,,,,,24/02/2011,11311,538.98,REVENUE,Southern Water Authority,
Gosport Borough Council,,"CULTURAL, ENV AND PLANNING",H4-1,,,,WATER SERVICES,,,,,03/02/2011,10572,669.82,REVENUE,Southern Water Authority,
Gosport Borough Council,,"CULTURAL, ENV AND PLANNING",H4-1,,,,WATER SERVICES,,,,,03/02/2011,10572,1339.67,REVENUE,Southern Water Authority,
Gosport Borough Council,,"CULTURAL, ENV AND PLANNING",H4-1,,,,WATER SERVICES,,,,,03/02/2011,10572,867.88,REVENUE,Southern Water Authority,
Gosport Borough Council,,"CULTURAL, ENV AND PLANNING",H4-1,,,,INDEPENDENT UNITS IN COUNCIL,,,,,17/02/2011,11050,19166.67,REVENUE,The Arena Group Uk Ltd,
Gosport Borough Council,,"CULTURAL, ENV AND PLANNING",H4-1,,,,INDEPENDENT UNITS IN COUNCIL,,,,,24/02/2011,11342,92672.68,REVENUE,Verdant Group Plc,
Gosport Borough Council,,"CULTURAL, ENV AND PLANNING",H4-1,,,,INDEPENDENT UNITS IN COUNCIL,,,,,17/02/2011,11023,528.00,REVENUE,Verdant Group Plc,
Gosport Borough Council,,"CULTURAL, ENV AND PLANNING",H4-1,,,,INDEPENDENT UNITS IN COUNCIL,,,,,24/02/2011,11342,203.45,REVENUE,Verdant Group Plc,
Gosport Borough Council,,"CULTURAL, ENV AND PLANNING",H4-1,,,,INDEPENDENT UNITS IN COUNCIL,,,,,24/02/2011,11342,260.37,REVENUE,Verdant Group Plc,
Gosport Borough Council,,"CULTURAL, ENV AND PLANNING",H4-1,,,,INDEPENDENT UNITS IN COUNCIL,,,,,24/02/2011,11342,2746.68,REVENUE,Verdant Group Plc,
Gosport Borough Council,,"CULTURAL, ENV AND PLANNING",H4-1,,,,INDEPENDENT UNITS IN COUNCIL,,,,,24/02/2011,11021,3327.05,REVENUE,Verdant Group Plc,
Gosport Borough Council,,"CULTURAL, ENV AND PLANNING",H4-1,,,,INDEPENDENT UNITS IN COUNCIL,,,,,24/02/2011,11342,26.22,REVENUE,Verdant Group Plc,
Gosport Borough Council,,"CULTURAL, ENV AND PLANNING",H4-1,,,,INDEPENDENT UNITS IN COUNCIL,,,,,24/02/2011,11342,35.00,REVENUE,Verdant Group Plc,
Gosport Borough Council,,"CULTURAL, ENV AND PLANNING",H4-1,,,,INDEPENDENT UNITS IN COUNCIL,,,,,24/02/2011,11342,1855.30,REVENUE,Verdant Group Plc,
Gosport Borough Council,,"CULTURAL, ENV AND PLANNING",H4-1,,,,INDEPENDENT UNITS IN COUNCIL,,,,,24/02/2011,11342,4454.25,REVENUE,Verdant Group Plc,
Gosport Borough Council,,"CULTURAL, ENV AND PLANNING",H4-1,,,,INDEPENDENT UNITS IN COUNCIL,,,,,17/02/2011,11022,915.24,REVENUE,Verdant Group Plc,
Gosport Borough Council,,"CULTURAL, ENV AND PLANNING",H4-1,,,,INDEPENDENT UNITS IN COUNCIL,,,,,10/02/2011,10102,3323.64,REVENUE,Verdant Group Plc,
Gosport Borough Council,,"CULTURAL, ENV AND PLANNING",H4-1,,,,INDEPENDENT UNITS IN COUNCIL,,,,,24/02/2011,11342,235.98,REVENUE,Verdant Group Plc,
Gosport Borough Council,,"CULTURAL, ENV AND PLANNING",H4-1,,,,OTHER ESTABLISHMENTS,,,,,24/02/2011,11342,26.22,REVENUE,Verdant Group Plc,
Gosport Borough Council,,"CULTURAL, ENV AND PLANNING",H4-1,,,,INDEPENDENT UNITS IN COUNCIL,,,,,10/02/2011,10822,434.68,REVENUE,Palm Recycling Limited,
Gosport Borough Council,,"CULTURAL, ENV AND PLANNING",H4-1,,,,SERVICES,,,,,17/02/2011,10932,850.00,REVENUE,Ross Associates,
Gosport Borough Council,,"CULTURAL, ENV AND PLANNING",H4-1,,,,PUBLIC TRANSPORT,,,,,25/02/2011,577,111.20,REVENUE,Rsp Travel Warrants,
Gosport Borough Council,,"CULTURAL, ENV AND PLANNING",H4-1,,,,PUBLIC TRANSPORT,,,,,25/02/2011,577,66.00,REVENUE,Rsp Travel Warrants,
Gosport Borough Council,,"CULTURAL, ENV AND PLANNING",H4-1,,,,"PRINTING, STAT & OFFICE EXP",,,,,17/02/2011,10232,760.00,REVENUE,Chartered Institute Of Environmental Health,
Gosport Borough Council,,"CULTURAL, ENV AND PLANNING",H4-1,,,,INDEPENDENT UNITS IN COUNCIL,,,,,17/02/2011,10941,4012.50,REVENUE,Mgb Plastics Ltd,
Gosport Borough Council,,"CULTURAL, ENV AND PLANNING",H4-1,,,,GROUNDS MAINTENANCE COSTS,,,,,17/02/2011,10233,780.00,REVENUE,Gfj Fabrications Ltd,
Gosport Borough Council,,"CULTURAL, ENV AND PLANNING",H4-1,,,,MISCELLANEOUS EXPENSES,,,,,03/02/2011,11179,1190.00,REVENUE,White Lion Youth Project,
Gosport Borough Council,,"CULTURAL, ENV AND PLANNING",H4-1,,,,REPAIRS AND MAINT OF BUILDINGS,,,,,17/02/2011,11081,449.73,REVENUE,Good Deal Marketing Ltd,
Gosport Borough Council,,"CULTURAL, ENV AND PLANNING",H4-1,,,,"EQUIP, FURNITURE AND MATERIALS",,,,,24/02/2011,11318,436.00,REVENUE,Record Rss Ltd,
Gosport Borough Council,,"HIGHWAYS, ROADS AND TRANSPORT",H4-2,,,,INDEPENDENT UNITS IN COUNCIL,,,,,03/02/2011,10594,970.39,REVENUE,Fareham Borough Council,
Gosport Borough Council,,"HIGHWAYS, ROADS AND TRANSPORT",H4-2,,,,REPAIRS AND MAINT OF BUILDINGS,,,,,17/02/2011,10228,595.44,REVENUE,Gs Building Services Ltd,
Gosport Borough Council,,"HIGHWAYS, ROADS AND TRANSPORT",H4-2,,,,INDEPENDENT UNITS IN COUNCIL,,,,,03/02/2011,10140,6807.20,REVENUE,Gs Building Services Ltd,
Gosport Borough Council,,"HIGHWAYS, ROADS AND TRANSPORT",H4-2,,,,GROUNDS MAINTENANCE COSTS,,,,,03/02/2011,10568,4413.60,REVENUE,Portsmouth City Council,
Gosport Borough Council,,"HIGHWAYS, ROADS AND TRANSPORT",H4-2,,,,WATER SERVICES,,,,,03/02/2011,10521,261.49,REVENUE,Portsmouth Water Ltd,
Gosport Borough Council,,"HIGHWAYS, ROADS AND TRANSPORT",H4-2,,,,SERVICES,,,,,24/02/2011,11237,556.40,REVENUE,Safe Aid,
Gosport Borough Council,,"HIGHWAYS, ROADS AND TRANSPORT",H4-2,,,,"EQUIP, FURNITURE AND MATERIALS",,,,,10/02/2011,10808,1158.00,REVENUE,Thames Valley Pumps Ltd,
Gosport Borough Council,,HOUSING SERVICES,H4-3,,,,GRANTS AND SUBSCRIPTIONS,,,,,24/02/2011,11914,556.25,REVENUE,REDACTED,
Gosport Borough Council,,HOUSING SERVICES,H4-3,,,,GRANTS AND SUBSCRIPTIONS,,,,,24/02/2011,11966,556.00,REVENUE,REDACTED,
Gosport Borough Council,,HOUSING SERVICES,H4-3,,,,GRANTS AND SUBSCRIPTIONS,,,,,24/02/2011,11964,667.50,REVENUE,REDACTED,
Gosport Borough Council,,HOUSING SERVICES,H4-3,,,,GRANTS AND SUBSCRIPTIONS,,,,,24/02/2011,11965,890.00,REVENUE,REDACTED,
Gosport Borough Council,,HOUSING SERVICES,H4-3,,,,GRANTS AND SUBSCRIPTIONS,,,,,10/02/2011,11642,500.00,REVENUE,Blakes Property Consultants Limited,
Gosport Borough Council,,HOUSING SERVICES,H4-3,,,,GRANTS AND SUBSCRIPTIONS,,,,,24/02/2011,11917,550.00,REVENUE,Brite-Move,
Gosport Borough Council,,HOUSING SERVICES,H4-3,,,,GRANTS AND SUBSCRIPTIONS,,,,,24/02/2011,11919,575.00,REVENUE,Brite-Move,
Gosport Borough Council,,HOUSING SERVICES,H4-3,,,,GRANTS AND SUBSCRIPTIONS,,,,,24/02/2011,11920,695.00,REVENUE,Brite-Move,
Gosport Borough Council,,HOUSING SERVICES,H4-3,,,,GRANTS AND SUBSCRIPTIONS,,,,,24/02/2011,11921,780.00,REVENUE,Brite-Move,
Gosport Borough Council,,HOUSING SERVICES,H4-3,,,,GRANTS AND SUBSCRIPTIONS,,,,,09/02/2011,10804,575.00,REVENUE,Brite-Move,
Gosport Borough Council,,HOUSING SERVICES,H4-3,,,,GRANTS AND SUBSCRIPTIONS,,,,,24/02/2011,11923,533.34,REVENUE,REDACTED,
Gosport Borough Council,,HOUSING SERVICES,H4-3,,,,GRANTS AND SUBSCRIPTIONS,,,,,24/02/2011,11925,578.50,REVENUE,REDACTED,
Gosport Borough Council,,HOUSING SERVICES,H4-3,,,,GRANTS AND SUBSCRIPTIONS,,,,,24/02/2011,11926,550.00,REVENUE,David Seymour & Associates,
Gosport Borough Council,,HOUSING SERVICES,H4-3,,,,GRANTS AND SUBSCRIPTIONS,,,,,24/02/2011,11934,574.99,REVENUE,David Seymour & Associates,
Gosport Borough Council,,HOUSING SERVICES,H4-3,,,,GRANTS AND SUBSCRIPTIONS,,,,,24/02/2011,11935,574.99,REVENUE,David Seymour & Associates,
Gosport Borough Council,,HOUSING SERVICES,H4-3,,,,GRANTS AND SUBSCRIPTIONS,,,,,24/02/2011,11938,574.99,REVENUE,David Seymour & Associates,
Gosport Borough Council,,HOUSING SERVICES,H4-3,,,,GRANTS AND SUBSCRIPTIONS,,,,,24/02/2011,11929,575.00,REVENUE,David Seymour & Associates,
Gosport Borough Council,,HOUSING SERVICES,H4-3,,,,GRANTS AND SUBSCRIPTIONS,,,,,24/02/2011,11931,593.75,REVENUE,David Seymour & Associates,
Gosport Borough Council,,HOUSING SERVICES,H4-3,,,,GRANTS AND SUBSCRIPTIONS,,,,,10/02/2011,10709,613.27,REVENUE,David Seymour & Associates,
Gosport Borough Council,,HOUSING SERVICES,H4-3,,,,GRANTS AND SUBSCRIPTIONS,,,,,24/02/2011,11930,667.51,REVENUE,David Seymour & Associates,
Gosport Borough Council,,HOUSING SERVICES,H4-3,,,,GRANTS AND SUBSCRIPTIONS,,,,,24/02/2011,11939,675.00,REVENUE,David Seymour & Associates,
Gosport Borough Council,,HOUSING SERVICES,H4-3,,,,GRANTS AND SUBSCRIPTIONS,,,,,24/02/2011,11932,713.67,REVENUE,David Seymour & Associates,
Gosport Borough Council,,HOUSING SERVICES,H4-3,,,,GRANTS AND SUBSCRIPTIONS,,,,,03/02/2011,10556,821.13,REVENUE,David Seymour & Associates,
Gosport Borough Council,,HOUSING SERVICES,H4-3,,,,GRANTS AND SUBSCRIPTIONS,,,,,23/02/2011,11254,595.00,REVENUE,Elite Property Management,
Gosport Borough Council,,HOUSING SERVICES,H4-3,,,,GRANTS AND SUBSCRIPTIONS,,,,,24/02/2011,11952,645.00,REVENUE,Fine Cars (Lee On Solent) Ltd,
Gosport Borough Council,,HOUSING SERVICES,H4-3,,,,GRANTS AND SUBSCRIPTIONS,,,,,24/02/2011,11954,626.36,REVENUE,REDACTED,
Gosport Borough Council,,HOUSING SERVICES,H4-3,,,,COMMUNICATIONS AND COMPUTING,,,,,24/02/2011,11225,568.40,REVENUE,Guinness Care And Support Limited,
Gosport Borough Council,,HOUSING SERVICES,H4-3,,,,GRANTS AND SUBSCRIPTIONS,,,,,24/02/2011,11961,555.59,REVENUE,REDACTED,
Gosport Borough Council,,HOUSING SERVICES,H4-3,,,,"EQUIP, FURNITURE AND MATERIALS",,,,,03/02/2011,10540,110.20,REVENUE,Jps Fire & Security Ltd,
Gosport Borough Council,,HOUSING SERVICES,H4-3,,,,GRANTS AND SUBSCRIPTIONS,,,,,07/02/2011,4450,-546.58,REVENUE,REDACTED,
Gosport Borough Council,,HOUSING SERVICES,H4-3,,,,GRANTS AND SUBSCRIPTIONS,,,,,07/02/2011,11190,546.58,REVENUE,REDACTED,
Gosport Borough Council,,HOUSING SERVICES,H4-3,,,,GRANTS AND SUBSCRIPTIONS,,,,,24/02/2011,11963,556.25,REVENUE,REDACTED,
Gosport Borough Council,,HOUSING SERVICES,H4-3,,,,GRANTS AND SUBSCRIPTIONS,,,,,24/02/2011,11968,619.00,REVENUE,REDACTED,
Gosport Borough Council,,HOUSING SERVICES,H4-3,,,,GRANTS AND SUBSCRIPTIONS,,,,,24/02/2011,11970,665.00,REVENUE,Miller Building Management,
Gosport Borough Council,,HOUSING SERVICES,H4-3,,,,GRANTS AND SUBSCRIPTIONS,,,,,24/02/2011,11969,667.51,REVENUE,Miller Building Management,
Gosport Borough Council,,HOUSING SERVICES,H4-3,,,,GRANTS AND SUBSCRIPTIONS,,,,,24/02/2011,11971,558.17,REVENUE,REDACTED,
Gosport Borough Council,,HOUSING SERVICES,H4-3,,,,GRANTS AND SUBSCRIPTIONS,,,,,24/02/2011,11975,655.78,REVENUE,REDACTED,
Gosport Borough Council,,HOUSING SERVICES,H4-3,,,,GRANTS AND SUBSCRIPTIONS,,,,,24/02/2011,11977,655.78,REVENUE,REDACTED,
Gosport Borough Council,,HOUSING SERVICES,H4-3,,,,GRANTS AND SUBSCRIPTIONS,,,,,24/02/2011,11976,665.00,REVENUE,REDACTED,
Gosport Borough Council,,HOUSING SERVICES,H4-3,,,,GRANTS AND SUBSCRIPTIONS,,,,,24/02/2011,11978,667.51,REVENUE,REDACTED
Gosport Borough Council,,HOUSING SERVICES,H4-3,,,,GRANTS AND SUBSCRIPTIONS,,,,,24/02/2011,11979,637.22,REVENUE,REDACTED
Gosport Borough Council,,HOUSING SERVICES,H4-3,,,,GRANTS AND SUBSCRIPTIONS,,,,,24/02/2011,11980,556.25,REVENUE,REDACTED
Gosport Borough Council,,HOUSING SERVICES,H4-3,,,,GRANTS AND SUBSCRIPTIONS,,,,,24/02/2011,11981,525.00,REVENUE,REDACTED
Gosport Borough Council,,HOUSING SERVICES,H4-3,,,,GRANTS AND SUBSCRIPTIONS,,,,,24/02/2011,11983,558.18,REVENUE,REDACTED
Gosport Borough Council,,HOUSING SERVICES,H4-3,,,,GRANTS AND SUBSCRIPTIONS,,,,,24/02/2011,11984,645.25,REVENUE,REDACTED
Gosport Borough Council,,HOUSING SERVICES,H4-3,,,,GRANTS AND SUBSCRIPTIONS,,,,,24/02/2011,11985,556.25,REVENUE,REDACTED
Gosport Borough Council,,HOUSING SERVICES,H4-3,,,,GRANTS AND SUBSCRIPTIONS,,,,,24/02/2011,11987,609.65,REVENUE,REDACTED
Gosport Borough Council,,HOUSING SERVICES,H4-3,,,,GRANTS AND SUBSCRIPTIONS,,,,,24/02/2011,11991,667.50,REVENUE,REDACTED
Gosport Borough Council,,HOUSING SERVICES,H4-3,,,,GRANTS AND SUBSCRIPTIONS,,,,,24/02/2011,11992,667.51,REVENUE,REDACTED
Gosport Borough Council,,HOUSING SERVICES,H4-3,,,,GRANTS AND SUBSCRIPTIONS,,,,,24/02/2011,11993,865.18,REVENUE,REDACTED
Gosport Borough Council,,HOUSING SERVICES,H4-3,,,,GRANTS AND SUBSCRIPTIONS,,,,,24/02/2011,11994,540.97,REVENUE,REDACTED
Gosport Borough Council,,HOUSING SERVICES,H4-3,,,,GRANTS AND SUBSCRIPTIONS,,,,,24/02/2011,11999,532.50,REVENUE,REDACTED
Gosport Borough Council,,HOUSING SERVICES,H4-3,,,,GRANTS AND SUBSCRIPTIONS,,,,,24/02/2011,11997,557.40,REVENUE,REDACTED
Gosport Borough Council,,HOUSING SERVICES,H4-3,,,,GRANTS AND SUBSCRIPTIONS,,,,,24/02/2011,12001,562.50,REVENUE,REDACTED
Gosport Borough Council,,HOUSING SERVICES,H4-3,,,,GRANTS AND SUBSCRIPTIONS,,,,,24/02/2011,12002,556.25,REVENUE,REDACTED
Gosport Borough Council,,HOUSING SERVICES,H4-3,,,,GRANTS AND SUBSCRIPTIONS,,,,,24/02/2011,12003,556.25,REVENUE,REDACTED
Gosport Borough Council,,HOUSING SERVICES,H4-3,,,,GRANTS AND SUBSCRIPTIONS,,,,,24/02/2011,12004,554.74,REVENUE,REDACTED
Gosport Borough Council,,HOUSING SERVICES,H4-3,,,,GRANTS AND SUBSCRIPTIONS,,,,,24/02/2011,12005,556.25,REVENUE,REDACTED
Gosport Borough Council,,HOUSING SERVICES,H4-3,,,,GRANTS AND SUBSCRIPTIONS,,,,,24/02/2011,12009,556.25,REVENUE,REDACTED
Gosport Borough Council,,HOUSING SERVICES,H4-3,,,,GRANTS AND SUBSCRIPTIONS,,,,,24/02/2011,12010,655.78,REVENUE,REDACTED
Gosport Borough Council,,HOUSING SERVICES,H4-3,,,,GRANTS AND SUBSCRIPTIONS,,,,,24/02/2011,12011,667.51,REVENUE,REDACTED
Gosport Borough Council,,HOUSING SERVICES,H4-3,,,,GRANTS AND SUBSCRIPTIONS,,,,,10/02/2011,11430,689.45,REVENUE,REDACTED
Gosport Borough Council,,HOUSING SERVICES,H4-3,,,,GRANTS AND SUBSCRIPTIONS,,,,,24/02/2011,12012,625.00,REVENUE,REDACTED
Gosport Borough Council,,HOUSING SERVICES,H4-3,,,,GRANTS AND SUBSCRIPTIONS,,,,,24/02/2011,12013,590.00,REVENUE,REDACTED
Gosport Borough Council,,HOUSING SERVICES,H4-3,,,,GRANTS AND SUBSCRIPTIONS,,,,,24/02/2011,12015,556.25,REVENUE,REDACTED
Gosport Borough Council,,HOUSING SERVICES,H4-3,,,,GRANTS AND SUBSCRIPTIONS,,,,,24/02/2011,12018,556.25,REVENUE,REDACTED
Gosport Borough Council,,HOUSING SERVICES,H4-3,,,,GRANTS AND SUBSCRIPTIONS,,,,,24/02/2011,12017,560.00,REVENUE,REDACTED
Gosport Borough Council,,HOUSING SERVICES,H4-3,,,,GRANTS AND SUBSCRIPTIONS,,,,,24/02/2011,12019,636.84,REVENUE,REDACTED
Gosport Borough Council,,HOUSING SERVICES,H4-3,,,,GRANTS AND SUBSCRIPTIONS,,,,,24/02/2011,12016,667.51,REVENUE,REDACTED
Gosport Borough Council,,HOUSING SERVICES,H4-3,,,,GRANTS AND SUBSCRIPTIONS,,,,,24/02/2011,12020,534.00,REVENUE,REDACTED
Gosport Borough Council,,HOUSING SERVICES,H4-3,,,,GRANTS AND SUBSCRIPTIONS,,,,,24/02/2011,12021,630.00,REVENUE,REDACTED
Gosport Borough Council,,HOUSING SERVICES,H4-3,,,,GRANTS AND SUBSCRIPTIONS,,,,,24/02/2011,12022,621.81,REVENUE,REDACTED
Gosport Borough Council,,HOUSING SERVICES,H4-3,,,,GRANTS AND SUBSCRIPTIONS,,,,,24/02/2011,12024,511.75,REVENUE,REDACTED
Gosport Borough Council,,HOUSING SERVICES,H4-3,,,,GRANTS AND SUBSCRIPTIONS,,,,,24/02/2011,12025,556.25,REVENUE,REDACTED
Gosport Borough Council,,HOUSING SERVICES,H4-3,,,,GRANTS AND SUBSCRIPTIONS,,,,,24/02/2011,12023,565.00,REVENUE,REDACTED
Gosport Borough Council,,HOUSING SERVICES,H4-3,,,,GRANTS AND SUBSCRIPTIONS,,,,,24/02/2011,12026,605.00,REVENUE,REDACTED
Gosport Borough Council,,HOUSING SERVICES,H4-3,,,,GRANTS AND SUBSCRIPTIONS,,,,,24/02/2011,12027,556.25,REVENUE,REDACTED
Gosport Borough Council,,HOUSING SERVICES,H4-3,,,,GRANTS AND SUBSCRIPTIONS,,,,,24/02/2011,12028,667.51,REVENUE,REDACTED
Gosport Borough Council,,HOUSING SERVICES,H4-3,,,,GRANTS AND SUBSCRIPTIONS,,,,,24/02/2011,12030,558.18,REVENUE,REDACTED
Gosport Borough Council,,HOUSING SERVICES,H4-3,,,,GRANTS AND SUBSCRIPTIONS,,,,,24/02/2011,12031,580.90,REVENUE,REDACTED
Gosport Borough Council,,HOUSING SERVICES,H4-3,,,,GRANTS AND SUBSCRIPTIONS,,,,,24/02/2011,12032,667.51,REVENUE,REDACTED
Gosport Borough Council,,HOUSING SERVICES,H4-3,,,,GRANTS AND SUBSCRIPTIONS,,,,,24/02/2011,12035,645.25,REVENUE,REDACTED
Gosport Borough Council,,HOUSING SERVICES,H4-3,,,,GRANTS AND SUBSCRIPTIONS,,,,,24/02/2011,12036,556.00,REVENUE,REDACTED
Gosport Borough Council,,HOUSING SERVICES,H4-3,,,,GRANTS AND SUBSCRIPTIONS,,,,,24/02/2011,12037,621.31,REVENUE,REDACTED
Gosport Borough Council,,HOUSING SERVICES,H4-3,,,,GRANTS AND SUBSCRIPTIONS,,,,,24/02/2011,12038,620.00,REVENUE,REDACTED
Gosport Borough Council,,HOUSING SERVICES,H4-3,,,,GRANTS AND SUBSCRIPTIONS,,,,,24/02/2011,12039,593.75,REVENUE,REDACTED
Gosport Borough Council,,HOUSING SERVICES,H4-3,,,,GRANTS AND SUBSCRIPTIONS,,,,,24/02/2011,12040,667.51,REVENUE,REDACTED
Gosport Borough Council,,HOUSING SERVICES,H4-3,,,,GRANTS AND SUBSCRIPTIONS,,,,,24/02/2011,12041,626.36,REVENUE,REDACTED
Gosport Borough Council,,HOUSING SERVICES,H4-3,,,,GRANTS AND SUBSCRIPTIONS,,,,,24/02/2011,12042,630.00,REVENUE,REDACTED
Gosport Borough Council,,HOUSING SERVICES,H4-3,,,,GRANTS AND SUBSCRIPTIONS,,,,,24/02/2011,12043,580.00,REVENUE,REDACTED
Gosport Borough Council,,HOUSING SERVICES,H4-3,,,,GRANTS AND SUBSCRIPTIONS,,,,,24/02/2011,12045,800.00,REVENUE,REDACTED
Gosport Borough Council,,HOUSING SERVICES,H4-3,,,,GRANTS AND SUBSCRIPTIONS,,,,,24/02/2011,12046,580.90,REVENUE,REDACTED
Gosport Borough Council,,HOUSING SERVICES,H4-3,,,,GRANTS AND SUBSCRIPTIONS,,,,,24/02/2011,12047,511.75,REVENUE,REDACTED
Gosport Borough Council,,HOUSING SERVICES,H4-3,,,,GRANTS AND SUBSCRIPTIONS,,,,,24/02/2011,12049,578.50,REVENUE,REDACTED
Gosport Borough Council,,HOUSING SERVICES,H4-3,,,,GRANTS AND SUBSCRIPTIONS,,,,,24/02/2011,12048,649.09,REVENUE,REDACTED
Gosport Borough Council,,HOUSING SERVICES,H4-3,,,,GRANTS AND SUBSCRIPTIONS,,,,,24/02/2011,12050,600.00,REVENUE,REDACTED
Gosport Borough Council,,HOUSING SERVICES,H4-3,,,,GRANTS AND SUBSCRIPTIONS,,,,,24/02/2011,12051,556.24,REVENUE,REDACTED
Gosport Borough Council,,HOUSING SERVICES,H4-3,,,,GRANTS AND SUBSCRIPTIONS,,,,,24/02/2011,12052,556.25,REVENUE,REDACTED
Gosport Borough Council,,HOUSING SERVICES,H4-3,,,,GRANTS AND SUBSCRIPTIONS,,,,,24/02/2011,12053,556.25,REVENUE,REDACTED
Gosport Borough Council,,HOUSING SERVICES,H4-3,,,,GRANTS AND SUBSCRIPTIONS,,,,,24/02/2011,12054,556.25,REVENUE,REDACTED
Gosport Borough Council,,HOUSING SERVICES,H4-3,,,,GRANTS AND SUBSCRIPTIONS,,,,,24/02/2011,12055,630.00,REVENUE,REDACTED
Gosport Borough Council,,HOUSING SERVICES,H4-3,,,,GRANTS AND SUBSCRIPTIONS,,,,,24/02/2011,12057,650.00,REVENUE,REDACTED
Gosport Borough Council,,HOUSING SERVICES,H4-3,,,,GRANTS AND SUBSCRIPTIONS,,,,,24/02/2011,12058,665.66,REVENUE,REDACTED
Gosport Borough Council,,HOUSING SERVICES,H4-3,,,,GRANTS AND SUBSCRIPTIONS,,,,,24/02/2011,12059,615.00,REVENUE,REDACTED,
Gosport Borough Council,,HOUSING SERVICES,H4-3,,,,GRANTS AND SUBSCRIPTIONS,,,,,24/02/2011,12062,580.90,REVENUE,REDACTED,
Gosport Borough Council,,HOUSING SERVICES,H4-3,,,,GRANTS AND SUBSCRIPTIONS,,,,,24/02/2011,12063,556.25,REVENUE,REDACTED,
Gosport Borough Council,,HOUSING SERVICES,H4-3,,,,GRANTS AND SUBSCRIPTIONS,,,,,24/02/2011,12064,585.52,REVENUE,REDACTED,
Gosport Borough Council,,HOUSING SERVICES,H4-3,,,,GRANTS AND SUBSCRIPTIONS,,,,,24/02/2011,12065,556.25,REVENUE,REDACTED,
Gosport Borough Council,,HOUSING SERVICES,H4-3,,,,GRANTS AND SUBSCRIPTIONS,,,,,24/02/2011,11912,556.25,REVENUE,REDACTED,
Gosport Borough Council,,HOUSING SERVICES,H4-3,,,,GRANTS AND SUBSCRIPTIONS,,,,,24/02/2011,11913,763.15,REVENUE,Stoke Gardens Guest Houses,
Gosport Borough Council,,HOUSING SERVICES,H4-3,,,,GRANTS AND SUBSCRIPTIONS,,,,,24/02/2011,11915,534.00,REVENUE,REDACTED,
Gosport Borough Council,,HOUSING SERVICES,H4-3,,,,GRANTS AND SUBSCRIPTIONS,,,,,24/02/2011,11916,520.65,REVENUE,Way Ahead Solutions Ltd,
Gosport Borough Council,,HOUSING SERVICES,H4-3,,,,GRANTS AND SUBSCRIPTIONS,,,,,24/02/2011,11940,556.25,REVENUE,REDACTED,
Gosport Borough Council,,HOUSING SERVICES,H4-3,,,,GRANTS AND SUBSCRIPTIONS,,,,,24/02/2011,11941,645.01,REVENUE,REDACTED,
Gosport Borough Council,,HOUSING SERVICES,H4-3,,,,GRANTS AND SUBSCRIPTIONS,,,,,24/02/2011,11942,529.25,REVENUE,REDACTED,
Gosport Borough Council,,HOUSING SERVICES,H4-3,,,,GRANTS AND SUBSCRIPTIONS,,,,,24/02/2011,11943,556.25,REVENUE,REDACTED,
Gosport Borough Council,,HOUSING SERVICES,H4-3,,,,GRANTS AND SUBSCRIPTIONS,,,,,24/02/2011,11944,850.00,REVENUE,REDACTED,
Gosport Borough Council,,HOUSING SERVICES,H4-3,,,,GRANTS AND SUBSCRIPTIONS,,,,,24/02/2011,11945,850.00,REVENUE,REDACTED,
Gosport Borough Council,,HOUSING SERVICES,H4-3,,,,GRANTS AND SUBSCRIPTIONS,,,,,01/02/2011,11138,2000.00,REVENUE,Payne Marsh Stillwell,
Gosport Borough Council,,HOUSING SERVICES,H4-3,,,,GRANTS AND SUBSCRIPTIONS,,,,,24/02/2011,11343,575.00,REVENUE,Beals Estate Agents,
Gosport Borough Council,,HOUSING SERVICES,H4-3,,,,GRANTS AND SUBSCRIPTIONS,,,,,24/02/2011,11946,556.25,REVENUE,REDACTED,
Gosport Borough Council,,HOUSING SERVICES,H4-3,,,,GRANTS AND SUBSCRIPTIONS,,,,,24/02/2011,11948,655.01,REVENUE,REDACTED,
Gosport Borough Council,,HOUSING SERVICES,H4-3,,,,GRANTS AND SUBSCRIPTIONS,,,,,24/02/2011,11949,556.25,REVENUE,REDACTED,
Gosport Borough Council,,HOUSING SERVICES,H4-3,,,,GRANTS AND SUBSCRIPTIONS,,,,,24/02/2011,11950,554.74,REVENUE,REDACTED,
Gosport Borough Council,,HOUSING SERVICES,H4-3,,,,GRANTS AND SUBSCRIPTIONS,,,,,03/02/2011,10597,500.00,REVENUE,David Seymours,
Gosport Borough Council,,HOUSING SERVICES,H4-3,,,,HOUSING BENEFITS,,,,,25/02/2011,608,1389453.74,REVENUE,Benefit Rent Allowance,
Gosport Borough Council,,HOUSING SERVICES,H4-3,,,,GRANTS AND SUBSCRIPTIONS,,,,,24/02/2011,11953,667.51,REVENUE,REDACTED,
Gosport Borough Council,,HOUSING SERVICES,H4-3,,,,GRANTS AND SUBSCRIPTIONS,,,,,24/02/2011,11955,592.14,REVENUE,REDACTED,
Gosport Borough Council,,HOUSING SERVICES,H4-3,,,,GRANTS AND SUBSCRIPTIONS,,,,,24/02/2011,11956,582.50,REVENUE,REDACTED,
Gosport Borough Council,,HOUSING SERVICES,H4-3,,,,GRANTS AND SUBSCRIPTIONS,,,,,24/02/2011,11957,650.00,REVENUE,REDACTED,
Gosport Borough Council,,HOUSING SERVICES,H4-3,,,,GRANTS AND SUBSCRIPTIONS,,,,,03/02/2011,11185,820.96,REVENUE,REDACTED,
Gosport Borough Council,,HOUSING SERVICES,H4-3,,,,GRANTS AND SUBSCRIPTIONS,,,,,11/02/2011,10923,700.00,REVENUE,Mann Countrywide Lettings,
Gosport Borough Council,,HOUSING SERVICES,H4-3,,,,GRANTS AND SUBSCRIPTIONS,,,,,24/02/2011,11958,593.75,REVENUE,REDACTED,
Gosport Borough Council,,HOUSING SERVICES,H4-3,,,,GRANTS AND SUBSCRIPTIONS,,,,,24/02/2011,11959,593.75,REVENUE,REDACTED,
Gosport Borough Council,,HOUSING SERVICES,H4-3,,,,GRANTS AND SUBSCRIPTIONS,,,,,24/02/2011,11960,713.67,REVENUE,REDACTED,
Gosport Borough Council,,CORPORATE AND DEMOCRATIC CORE,H4-4,,,,DIRECT TRANSPORT COSTS,,,,,24/02/2011,11238,33.29,REVENUE,Arval Uk Mltd,
Gosport Borough Council,,CORPORATE AND DEMOCRATIC CORE,H4-4,,,,DIRECT TRANSPORT COSTS,,,,,24/02/2011,11210,55.33,REVENUE,Arval Uk Mltd,
Gosport Borough Council,,CORPORATE AND DEMOCRATIC CORE,H4-4,,,,SERVICES,,,,,10/02/2011,10324,-1672.00,REVENUE,Audit Commission,
Gosport Borough Council,,CORPORATE AND DEMOCRATIC CORE,H4-4,,,,SERVICES,,,,,10/02/2011,10799,10208.00,REVENUE,Audit Commission,
Gosport Borough Council,,CORPORATE AND DEMOCRATIC CORE,H4-4,,,,MISCELLANEOUS EXPENSES,,,,,17/02/2011,10972,992.00,REVENUE,Portsmouth Naval Base Property Trust,
Gosport Borough Council,,CORPORATE AND DEMOCRATIC CORE,H4-4,,,,"PRINTING, STAT & OFFICE EXP",,,,,25/02/2011,543,2594.65,REVENUE,Royal Mail Group Plc,
Gosport Borough Council,,CORPORATE AND DEMOCRATIC CORE,H4-4,,,,INDIRECT EMPLOYEE EXPENSES,,,,,03/02/2011,10529,750.00,REVENUE,South East Employers,
Gosport Borough Council,,CORPORATE AND DEMOCRATIC CORE,H4-4,,,,MISCELLANEOUS EXPENSES,,,,,17/02/2011,10971,5495.00,REVENUE,Echelon Consultancy Ltd,
Gosport Borough Council,,CORPORATE AND DEMOCRATIC CORE,H4-4,,,,PUBLIC TRANSPORT,,,,,25/02/2011,577,55.10,REVENUE,Rsp Travel Warrants,
Gosport Borough Council,,CORPORATE AND DEMOCRATIC CORE,H4-4,,,,PUBLIC TRANSPORT,,,,,25/02/2011,577,119.80,REVENUE,Rsp Travel Warrants,
Gosport Borough Council,,CORPORATE AND DEMOCRATIC CORE,H4-4,,,,MISCELLANEOUS EXPENSES,,,,,25/02/2011,564,10000.00,REVENUE,Chaps Treasury Management,
Gosport Borough Council,,CORPORATE AND DEMOCRATIC CORE,H4-4,,,,MISCELLANEOUS EXPENSES,,,,,24/02/2011,11296,416.67,REVENUE,On The Waterfront Limited,
Gosport Borough Council,,CENTRAL SERVICES TO THE PUBLIC,H4-5,,,,INDEPENDENT UNITS IN COUNCIL,,,,,03/02/2011,10594,427.39,REVENUE,Fareham Borough Council,
Gosport Borough Council,,CENTRAL SERVICES TO THE PUBLIC,H4-5,,,,GRANTS AND SUBSCRIPTIONS,,,,,24/02/2011,11229,1909.67,REVENUE,Hampshire County Council,
Gosport Borough Council,,CENTRAL SERVICES TO THE PUBLIC,H4-5,,,,INDEPENDENT UNITS IN COUNCIL,,,,,10/02/2011,10797,1350.00,REVENUE,Hampshire County Council,
Gosport Borough Council,,CENTRAL SERVICES TO THE PUBLIC,H4-5,,,,SERVICES,,,,,23/02/2011,9940,500.00,REVENUE,Information Commissioner,
Gosport Borough Council,,CENTRAL SERVICES TO THE PUBLIC,H4-5,,,,GRANTS AND SUBSCRIPTIONS,,,,,17/02/2011,8726,1855.00,REVENUE,Beryton Residents Association,
Gosport Borough Council,,CENTRAL SERVICES TO THE PUBLIC,H4-5,,,,PUBLIC TRANSPORT,,,,,25/02/2011,577,10.30,REVENUE,Rsp Travel Warrants,
Gosport Borough Council,,CENTRAL SERVICES TO THE PUBLIC,H4-5,,,,MISCELLANEOUS EXPENSES,,,,,24/02/2011,11273,2301.00,REVENUE,Trowers & Hamlins Llp,
Gosport Borough Council,,CENTRAL SERVICES TO THE PUBLIC,H4-5,,,,MISCELLANEOUS EXPENSES,,,,,24/02/2011,11274,7287.50,REVENUE,Trowers & Hamlins Llp,
Gosport Borough Council,,CENTRAL SERVICES TO THE PUBLIC,H4-5,,,,COMMUNICATIONS AND COMPUTING,,,,,17/02/2011,10933,1500.00,REVENUE,Sedgemoor District Council,
Gosport Borough Council,,CENTRAL SERVICES TO THE PUBLIC,H4-5,,,,GRANTS AND SUBSCRIPTIONS,,,,,24/02/2011,11303,1500.00,REVENUE,Lee Festival,
Gosport Borough Council,,CENTRAL SERVICES TO THE PUBLIC,H4-5,,,,GRANTS AND SUBSCRIPTIONS,,,,,24/02/2011,11301,1000.00,REVENUE,Vitalise,
Gosport Borough Council,,UNAPPORTIONABLE CENTRAL O/H,H4-6,,,,DIRECT TRANSPORT COSTS,,,,,24/02/2011,11238,155.83,REVENUE,Arval Uk Mltd,
Gosport Borough Council,,UNAPPORTIONABLE CENTRAL O/H,H4-6,,,,DIRECT TRANSPORT COSTS,,,,,24/02/2011,11210,40.60,REVENUE,Arval Uk Mltd,
Gosport Borough Council,,UNAPPORTIONABLE CENTRAL O/H,H4-6,,,,DIRECT TRANSPORT COSTS,,,,,24/02/2011,11210,221.93,REVENUE,Arval Uk Mltd,
Gosport Borough Council,,UNAPPORTIONABLE CENTRAL O/H,H4-6,,,,DIRECT TRANSPORT COSTS,,,,,24/02/2011,11210,37.38,REVENUE,Arval Uk Mltd,
Gosport Borough Council,,UNAPPORTIONABLE CENTRAL O/H,H4-6,,,,DIRECT TRANSPORT COSTS,,,,,24/02/2011,11357,47.83,REVENUE,Arval Uk Mltd,
Gosport Borough Council,,UNAPPORTIONABLE CENTRAL O/H,H4-6,,,,DIRECT TRANSPORT COSTS,,,,,24/02/2011,11357,111.60,REVENUE,Arval Uk Mltd,
Gosport Borough Council,,UNAPPORTIONABLE CENTRAL O/H,H4-6,,,,DIRECT TRANSPORT COSTS,,,,,24/02/2011,11357,275.24,REVENUE,Arval Uk Mltd,
Gosport Borough Council,,UNAPPORTIONABLE CENTRAL O/H,H4-6,,,,DIRECT TRANSPORT COSTS,,,,,24/02/2011,11357,99.87,REVENUE,Arval Uk Mltd,
Gosport Borough Council,,UNAPPORTIONABLE CENTRAL O/H,H4-6,,,,FIXTURES AND FITTINGS,,,,,24/02/2011,11289,522.90,REVENUE,Chubb Electronic Security Limited,
Gosport Borough Council,,UNAPPORTIONABLE CENTRAL O/H,H4-6,,,,ENERGY COSTS,,,,,24/02/2011,11270,5258.19,REVENUE,E.On,
Gosport Borough Council,,UNAPPORTIONABLE CENTRAL O/H,H4-6,,,,INDEPENDENT UNITS IN COUNCIL,,,,,03/02/2011,10594,123.77,REVENUE,Fareham Borough Council,
Gosport Borough Council,,UNAPPORTIONABLE CENTRAL O/H,H4-6,,,,CONTRACT HIRE & OPER LEASES,,,,,03/02/2011,10574,500.00,REVENUE,Gva Grimley Llp,
Gosport Borough Council,,UNAPPORTIONABLE CENTRAL O/H,H4-6,,,,SERVICES,,,,,02/02/2011,10584,-850.00,REVENUE,Hampshire County Council,
Gosport Borough Council,,UNAPPORTIONABLE CENTRAL O/H,H4-6,,,,GRANTS AND SUBSCRIPTIONS,,,,,03/02/2011,10538,5331.02,REVENUE,Housemark Ltd,
Gosport Borough Council,,UNAPPORTIONABLE CENTRAL O/H,H4-6,,,,COMMUNICATIONS AND COMPUTING,,,,,24/02/2011,11287,754.16,REVENUE,Northgate Arinso Uk Ltd,
Gosport Borough Council,,UNAPPORTIONABLE CENTRAL O/H,H4-6,,,,COMMUNICATIONS AND COMPUTING,,,,,24/02/2011,11286,771.34,REVENUE,Northgate Arinso Uk Ltd,
Gosport Borough Council,,UNAPPORTIONABLE CENTRAL O/H,H4-6,,,,COMMUNICATIONS AND COMPUTING,,,,,24/02/2011,11288,18662.00,REVENUE,Northgate Arinso Uk Ltd,
Gosport Borough Council,,UNAPPORTIONABLE CENTRAL O/H,H4-6,,,,COMMUNICATIONS AND COMPUTING,,,,,24/02/2011,11354,4619.14,REVENUE,Northgate Information Solutions,
Gosport Borough Council,,UNAPPORTIONABLE CENTRAL O/H,H4-6,,,,COMMUNICATIONS AND COMPUTING,,,,,24/02/2011,11351,5199.41,REVENUE,Northgate Information Solutions,
Gosport Borough Council,,UNAPPORTIONABLE CENTRAL O/H,H4-6,,,,COMMUNICATIONS AND COMPUTING,,,,,24/02/2011,11353,13248.78,REVENUE,Northgate Information Solutions,
Gosport Borough Council,,UNAPPORTIONABLE CENTRAL O/H,H4-6,,,,COMMUNICATIONS AND COMPUTING,,,,,24/02/2011,11353,13248.78,REVENUE,Northgate Information Solutions,
Gosport Borough Council,,UNAPPORTIONABLE CENTRAL O/H,H4-6,,,,"EQUIP, FURNITURE AND MATERIALS",,,,,10/02/2011,10798,3916.94,REVENUE,Phs Group Ltd,
Gosport Borough Council,,UNAPPORTIONABLE CENTRAL O/H,H4-6,,,,DIRECT EMPLOYEE EXPENSES,,,,,17/02/2011,11016,5000.00,REVENUE,Portsmouth City Council,
Gosport Borough Council,,UNAPPORTIONABLE CENTRAL O/H,H4-6,,,,"EQUIP, FURNITURE AND MATERIALS",,,,,17/02/2011,10995,11208.00,REVENUE,Presstek Europe Ltd,
Gosport Borough Council,,UNAPPORTIONABLE CENTRAL O/H,H4-6,,,,"PRINTING, STAT & OFFICE EXP",,,,,24/02/2011,11281,3630.81,REVENUE,Ricoh Uk Ltd,
Gosport Borough Council,,UNAPPORTIONABLE CENTRAL O/H,H4-6,,,,INDIRECT EMPLOYEE EXPENSES,,,,,03/02/2011,10539,1435.00,REVENUE,Southampton Solent University,
Gosport Borough Council,,UNAPPORTIONABLE CENTRAL O/H,H4-6,,,,"EQUIP, FURNITURE AND MATERIALS",,,,,17/02/2011,10220,1220.00,REVENUE,Think4 I.T. Solutions Ltd,
Gosport Borough Council,,UNAPPORTIONABLE CENTRAL O/H,H4-6,,,,REPAIRS AND MAINT OF BUILDINGS,,,,,10/02/2011,10731,448.80,REVENUE,Walker Electrical Services (Uk) Ltd,
Gosport Borough Council,,UNAPPORTIONABLE CENTRAL O/H,H4-6,,,,SERVICES,,,,,08/02/2011,10722,1530.00,REVENUE,Hmcs,
Gosport Borough Council,,UNAPPORTIONABLE CENTRAL O/H,H4-6,,,,INDIRECT EMPLOYEE EXPENSES,,,,,03/02/2011,10559,425.00,REVENUE,Cipfa Business Limited,
Gosport Borough Council,,UNAPPORTIONABLE CENTRAL O/H,H4-6,,,,SERVICES,,,,,24/02/2011,11355,656.75,REVENUE,Loomis Uk Ltd,
Gosport Borough Council,,UNAPPORTIONABLE CENTRAL O/H,H4-6,,,,DIRECT EMPLOYEE EXPENSES,,,,,24/02/2011,11344,488.25,REVENUE,Fusion People Limited,
Gosport Borough Council,,UNAPPORTIONABLE CENTRAL O/H,H4-6,,,,DIRECT EMPLOYEE EXPENSES,,,,,03/02/2011,10545,699.93,REVENUE,Fusion People Limited,
Gosport Borough Council,,UNAPPORTIONABLE CENTRAL O/H,H4-6,,,,DIRECT EMPLOYEE EXPENSES,,,,,17/02/2011,10961,750.75,REVENUE,Fusion People Limited,
Gosport Borough Council,,UNAPPORTIONABLE CENTRAL O/H,H4-6,,,,DIRECT EMPLOYEE EXPENSES,,,,,03/02/2011,10544,756.00,REVENUE,Fusion People Limited,
Gosport Borough Council,,UNAPPORTIONABLE CENTRAL O/H,H4-6,,,,DIRECT EMPLOYEE EXPENSES,,,,,24/02/2011,11264,829.50,REVENUE,Fusion People Limited,
Gosport Borough Council,,UNAPPORTIONABLE CENTRAL O/H,H4-6,,,,DIRECT EMPLOYEE EXPENSES,,,,,24/02/2011,11265,829.50,REVENUE,Fusion People Limited,
Gosport Borough Council,,UNAPPORTIONABLE CENTRAL O/H,H4-6,,,,ENERGY COSTS,,,,,25/02/2011,556,868.19,REVENUE,Smartest Energy,
Gosport Borough Council,,UNAPPORTIONABLE CENTRAL O/H,H4-6,,,,DIRECT EMPLOYEE EXPENSES,,,,,25/02/2011,561,-574.45,REVENUE,A O Shipley,
Gosport Borough Council,,UNAPPORTIONABLE CENTRAL O/H,H4-6,,,,DIRECT EMPLOYEE EXPENSES,,,,,25/02/2011,561,-574.45,REVENUE,A O Shipley,
Gosport Borough Council,,UNAPPORTIONABLE CENTRAL O/H,H4-6,,,,DIRECT EMPLOYEE EXPENSES,,,,,25/02/2011,561,-574.45,REVENUE,A O Shipley,
Gosport Borough Council,,UNAPPORTIONABLE CENTRAL O/H,H4-6,,,,DIRECT EMPLOYEE EXPENSES,,,,,25/02/2011,561,-1708.93,REVENUE,A O Shipley,
Gosport Borough Council,,UNAPPORTIONABLE CENTRAL O/H,H4-6,,,,PUBLIC TRANSPORT,,,,,25/02/2011,577,31.20,REVENUE,Rsp Travel Warrants,
Gosport Borough Council,,UNAPPORTIONABLE CENTRAL O/H,H4-6,,,,PUBLIC TRANSPORT,,,,,25/02/2011,577,10.30,REVENUE,Rsp Travel Warrants,
Gosport Borough Council,,UNAPPORTIONABLE CENTRAL O/H,H4-6,,,,PUBLIC TRANSPORT,,,,,25/02/2011,577,33.60,REVENUE,Rsp Travel Warrants,
Gosport Borough Council,,UNAPPORTIONABLE CENTRAL O/H,H4-6,,,,PUBLIC TRANSPORT,,,,,25/02/2011,577,66.00,REVENUE,Rsp Travel Warrants,
Gosport Borough Council,,UNAPPORTIONABLE CENTRAL O/H,H4-6,,,,PUBLIC TRANSPORT,,,,,25/02/2011,577,66.00,REVENUE,Rsp Travel Warrants,
Gosport Borough Council,,UNAPPORTIONABLE CENTRAL O/H,H4-6,,,,PUBLIC TRANSPORT,,,,,25/02/2011,577,42.00,REVENUE,Rsp Travel Warrants,
Gosport Borough Council,,UNAPPORTIONABLE CENTRAL O/H,H4-6,,,,PUBLIC TRANSPORT,,,,,25/02/2011,577,62.60,REVENUE,Rsp Travel Warrants,
Gosport Borough Council,,UNAPPORTIONABLE CENTRAL O/H,H4-6,,,,PUBLIC TRANSPORT,,,,,25/02/2011,577,117.70,REVENUE,Rsp Travel Warrants,
Gosport Borough Council,,UNAPPORTIONABLE CENTRAL O/H,H4-6,,,,"EQUIP, FURNITURE AND MATERIALS",,,,,25/02/2011,547,10825.00,REVENUE,Rental Advantage Ltd,
Gosport Borough Council,,UNAPPORTIONABLE CENTRAL O/H,H4-6,,,,DIRECT EMPLOYEE EXPENSES,,,,,17/02/2011,11074,57208.00,REVENUE,Hampshire Pension Fund,
Gosport Borough Council,,UNAPPORTIONABLE CENTRAL O/H,H4-6,,,,COMMUNICATIONS AND COMPUTING,,,,,03/02/2011,10588,950.00,REVENUE,Logicmighty,
Gosport Borough Council,,UNAPPORTIONABLE CENTRAL O/H,H4-6,,,,"EQUIP, FURNITURE AND MATERIALS",,,,,10/02/2011,10837,3956.40,REVENUE,Comec Voice & Data Ltd,
Gosport Borough Council,,UNAPPORTIONABLE CENTRAL O/H,H4-6,,,,SERVICES,,,,,10/02/2011,10834,850.00,REVENUE,REDACTED,
Gosport Borough Council,,UNAPPORTIONABLE CENTRAL O/H,H4-6,,,,SERVICES,,,,,10/02/2011,10832,10186.74,REVENUE,Squire Sanders & Dempsey (Uk) Llp,
Gosport Borough Council,,UNAPPORTIONABLE CENTRAL O/H,H4-6,,,,"EQUIP, FURNITURE AND MATERIALS",,,,,10/02/2011,10830,525.90,REVENUE,Thomas Fattorini Ltd,
Gosport Borough Council,,UNAPPORTIONABLE CENTRAL O/H,H4-6,,,,"EQUIP, FURNITURE AND MATERIALS",,,,,17/02/2011,11036,445.00,REVENUE,Southern Canopy Sales & Hire Ltd,
Gosport Borough Council,,UNAPPORTIONABLE CENTRAL O/H,H4-6,,,,"EQUIP, FURNITURE AND MATERIALS",,,,,24/02/2011,11295,10000.60,REVENUE,Icm Business Continuity Services Ltd,
Gosport Borough Council,,CAPITAL,H4-9,,,,CAPITAL - PREMISES COSTS,,,,,17/02/2011,11073,688.00,CAPITAL,Blakes Property Consultants Limited,
Gosport Borough Council,,CAPITAL,H4-9,,,,CAPITAL - PREMISES COSTS,,,,,24/02/2011,11230,978.10,CAPITAL,Howdens Joinery Company Ltd,
Gosport Borough Council,,CAPITAL,H4-9,,,,CAPITAL - PREMISES COSTS,,,,,03/02/2011,10540,275.50,CAPITAL,Jps Fire & Security Ltd,
Gosport Borough Council,,CAPITAL,H4-9,,,,CAPITAL - PREMISES COSTS,,,,,03/02/2011,10565,720.00,CAPITAL,Martin Ralph Ltd,
Gosport Borough Council,,CAPITAL,H4-9,,,,CAPITAL - PREMISES COSTS,,,,,03/02/2011,10566,2032.92,CAPITAL,Richardson Decorating Cont Ltd,
Gosport Borough Council,,CAPITAL,H4-9,,,,CAPITAL - PREMISES COSTS,,,,,15/02/2011,10967,495.65,CAPITAL,Seaflame Company Limited,
Gosport Borough Council,,CAPITAL,H4-9,,,,CAPITAL - PREMISES COSTS,,,,,15/02/2011,10970,6224.07,CAPITAL,Seaflame Company Limited,
Gosport Borough Council,,CAPITAL,H4-9,,,,CAPITAL - PREMISES COSTS,,,,,15/02/2011,10968,18774.06,CAPITAL,Seaflame Company Limited,
Gosport Borough Council,,CAPITAL,H4-9,,,,CAPITAL - PREMISES COSTS,,,,,15/02/2011,10965,33334.00,CAPITAL,Seaflame Company Limited,
Gosport Borough Council,,CAPITAL,H4-9,,,,CAPITAL - PREMISES COSTS,,,,,15/02/2011,10964,41666.00,CAPITAL,Seaflame Company Limited,
Gosport Borough Council,,CAPITAL,H4-9,,,,CAPITAL - PREMISES COSTS,,,,,24/02/2011,11266,1446.01,CAPITAL,Lovell Partnerships Limited,
Gosport Borough Council,,CAPITAL,H4-9,,,,CAPITAL - PREMISES COSTS,,,,,24/02/2011,11268,2433.87,CAPITAL,Lovell Partnerships Limited,
Gosport Borough Council,,CAPITAL,H4-9,,,,CAPITAL - PREMISES COSTS,,,,,24/02/2011,11267,5138.90,CAPITAL,Lovell Partnerships Limited,
Gosport Borough Council,,CAPITAL,H4-9,,,,CAPITAL - PREMISES COSTS,,,,,24/02/2011,11269,5715.56,CAPITAL,Lovell Partnerships Limited,
Gosport Borough Council,,CAPITAL,H4-9,,,,CAPITAL - PREMISES COSTS,,,,,03/02/2011,11152,3300.00,CAPITAL,D G Installations Ltd,
Gosport Borough Council,,CAPITAL,H4-9,,,,CAPITAL - PREMISES COSTS,,,,,24/02/2011,11333,3830.00,CAPITAL,D G Installations Ltd,
Gosport Borough Council,,CAPITAL,H4-9,,,,CAPITAL - PREMISES COSTS,,,,,03/02/2011,10577,575.28,CAPITAL,In Touch Support Ltd,
Gosport Borough Council,,CAPITAL,H4-9,,,,CAPITAL - PREMISES COSTS,,,,,24/02/2011,11338,684.62,CAPITAL,In Touch Support Ltd,
Gosport Borough Council,,CAPITAL,H4-9,,,,CAPITAL - PREMISES COSTS,,,,,24/02/2011,11341,1525.00,CAPITAL,Liftech Systems (Se) Ltd,
Gosport Borough Council,,CAPITAL,H4-9,,,,CAPITAL - PREMISES COSTS,,,,,03/02/2011,10576,3152.17,CAPITAL,Liftech Systems (Se) Ltd,
Gosport Borough Council,,CAPITAL,H4-9,,,,CAPITAL - PREMISES COSTS,,,,,24/02/2011,11340,3200.00,CAPITAL,G Rixon Ltd,
Gosport Borough Council,,CAPITAL,H4-9,,,,CAPITAL - PREMISES COSTS,,,,,24/02/2011,11339,3210.00,CAPITAL,G Rixon Ltd,
Gosport Borough Council,,CAPITAL,H4-9,,,,GRANTS AND SUBSCRIPTIONS,,,,,17/02/2011,11085,1302.00,CAPITAL,Gosport Allotment Holders Assc,
Gosport Borough Council,,CAPITAL,H4-9,,,,CAPITAL - PREMISES COSTS,,,,,17/02/2011,11031,1666.27,CAPITAL,Giles Wheeler-Bennett Ltd,
Gosport Borough Council,,CAPITAL,H4-9,,,,CAPITAL - PREMISES COSTS,,,,,03/02/2011,10591,502298.82,CAPITAL,Trant Construction Limited,
Gosport Borough Council,,CAPITAL,H4-9,,,,DIRECT TRANSPORT COSTS,,,,,24/02/2011,11210,52.33,CAPITAL,Arval Uk Mltd,
Gosport Borough Council,,CAPITAL,H4-9,,,,SERVICES,,,,,10/02/2011,10699,2168.00,CAPITAL,Strategic Leisure Ltd,
Gosport Borough Council,,CAPITAL,H4-9,,,,SERVICES,,,,,17/02/2011,11048,-7463.00,CAPITAL,Mills & Reeve Llp,
Gosport Borough Council,,CAPITAL,H4-9,,,,SERVICES,,,,,17/02/2011,11047,24398.00,CAPITAL,Mills & Reeve Llp,
Gosport Borough Council,,CAPITAL,H4-9,,,,SERVICES,,,,,17/02/2011,11079,2040.00,CAPITAL,Metrorod Ltd,
Gosport Borough Council,,CAPITAL,H4-9,,,,SERVICES,,,,,17/02/2011,11080,2260.00,CAPITAL,Metrorod Ltd,
Gosport Borough Council,,CAPITAL,H4-9,,,,CAPITAL - PREMISES COSTS,,,,,10/02/2011,10779,3867.79,CAPITAL,Caroway Contractors Limited,
Gosport Borough Council,,CAPITAL,H4-9,,,,CAPITAL - PREMISES COSTS,,,,,10/02/2011,10663,4924.39,CAPITAL,Ace Office Supplies Ltd,
Gosport Borough Council,,CAPITAL,H4-9,,,,CAPITAL - PREMISES COSTS,,,,,17/02/2011,11110,8952.64,CAPITAL,Walker Electrical Services (Uk) Ltd,
Gosport Borough Council,,CAPITAL,H4-9,,,,CAPITAL - PREMISES COSTS,,,,,17/02/2011,11109,14263.01,CAPITAL,Walker Electrical Services (Uk) Ltd,
Gosport Borough Council,,CAPITAL,H4-9,,,,CAPITAL - PREMISES COSTS,,,,,17/02/2011,10843,2237.50,CAPITAL,Elj Furnishing,
Gosport Borough Council,,CAPITAL,H4-9,,,,SERVICES,,,,,10/02/2011,10801,1024.03,CAPITAL,Jeffery Wood,
Gosport Borough Council,,CAPITAL,H4-9,,,,CAPITAL - SUPPLIES & SERVICES,,,,,17/02/2011,11020,2880.00,CAPITAL,Northgate Arinso Uk Ltd,
